bitfinex/quotes_ETHUSD_20251111
["timestamp","ask_amount","ask_price","bid_price","bid_amount"]
[1762851454299,0.0004,3565.9,3565.8,4.17315745]
[1762851454501,0.6464,3565.9,3565.8,4.17315745]
[1762851456209,0.002,3566.3,3566.2,2.80410521]
[1762851456398,0.002,3566.3,3566.2,4.09833863]
[1762851456399,0.648,3566.3,3566.2,4.09833863]
[1762851458895,0.648,3566.3,3566.2,3.73163863]
[1762851459485,0.002,3566.3,3566.2,3.73163863]
[1762851459691,0.158,3566.3,3566.2,4.09833863]
[1762851460999,0.158,3566.3,3566.2,3.73163863]
[1762851461607,0.002,3566.3,3566.2,3.73163863]
[1762851461813,0.648,3566.3,3566.2,3.73163863]
[1762851464799,0.002,3566.3,3566.2,3.73163863]
[1762851465199,0.002,3566.3,3566.2,4.09833863]
[1762851467228,0.002,3566.3,3566.2,3.73163863]
[1762851467530,0.002,3566.3,3566.2,4.09833863]
[1762851468727,0.002,3566.3,3566.2,3.73163863]
[1762851468938,0.002,3566.3,3566.2,7.81628306]
[1762851470403,0.002,3566.3,3566.2,7.44958306]
[1762851471006,0.4936,3566.3,3566.2,2.80410521]
[1762851471233,0.9638,3566.3,3566.2,2.80410521]
[1762851471410,0.9638,3566.3,3566.1,2.80417852]
[1762851471606,0.9638,3566.3,3566.2,2.80410521]
[1762851471607,0.4722,3566.3,3566.2,2.80410521]
[1762851471807,0.4722,3566.3,3566.1,2.80415776]
[1762851472117,0.4722,3566.3,3565.9,2.001]
[1762851472312,0.4722,3566.3,3566.1,2.80411464]
[1762851472640,0.647,3566.3,3566.2,6.88874964]
[1762851474640,0.002,3566.3,3566.2,3.17080521]
[1762851474835,0.002,3566.3,3566.1,6.67472202]
[1762851475039,0.4936,3566.3,3566.2,2.80410521]
[1762851475237,0.002,3566.3,3566.2,2.80410521]
[1762851475639,0.002,3566.3,3566.2,3.17080521]
[1762851476503,0.002,3566.3,3566.2,6.88874964]
[1762851477750,0.002,3566.3,3566.2,7.25544964]
[1762851477936,0.002,3566.3,3566.2,8.27677236]
[1762851478108,0.002,3566.3,3566.2,7.91007236]
[1762851480217,0.0012,3566.3,3566.2,7.91007236]
[1762851482865,0.0012,3566.3,3566.2,3.17080521]
[1762851484909,0.0012,3566.3,3566.2,2.80410521]
[1762851485396,0.0012,3566.3,3566.2,6.88874964]
[1762851487419,0.0012,3566.3,3566.2,3.17080521]
[1762851487710,0.0012,3566.3,3566.2,2.80410521]
[1762851488879,0.4975,3566.3,3566.2,2.80410521]
[1762851489514,0.0012,3566.3,3566.2,2.80410521]
[1762851496020,0.4975,3566.3,3566.2,2.80410521]
[1762851496316,1.6104,3566.3,3565.9,0.001]
[1762851496521,0.4962,3566.0,3565.9,2.80530731]
[1762851496681,0.4962,3566.0,3565.9,0.001]
[1762851496877,0.9641,3566.0,3565.9,0.001]
[1762851498624,1.40553325,3566.0,3565.9,0.001]
[1762851498814,0.9641,3566.0,3565.9,0.001]
[1762851500032,0.9641,3566.0,3565.9,2.80534112]
[1762851500447,0.9641,3566.0,3565.9,0.001]
[1762851502044,0.9641,3566.0,3565.9,2.80534112]
[1762851502750,0.0012,3566.3,3566.0,2.80419184]
[1762851502949,0.0012,3566.3,3566.2,6.52204964]
[1762851503254,0.6462,3566.3,3566.2,6.52204964]
[1762851503412,1.1425,3566.3,3566.2,6.52204964]
[1762851504208,1.1417,3566.3,3566.2,6.52204964]
[1762851505255,1.6096,3566.3,3566.1,2.80413078]
[1762851505409,1.1417,3566.3,3566.2,2.80410521]
[1762851506113,1.6244,3566.3,3566.2,2.80410521]
[1762851506351,0.9794,3566.3,3566.2,2.80410521]
[1762851506558,1.6244,3566.3,3566.0,3.71794443]
[1762851506752,0.4675,3566.1,3566.0,2.80420083]
[1762851507254,0.9502,3566.1,3566.0,2.80420083]
[1762851507440,0.4675,3566.1,3566.0,2.80420083]
[1762851507640,1.1281,3566.3,3566.2,2.80410521]
[1762851508116,0.6454,3566.3,3566.2,6.52204964]
[1762851508321,0.6454,3566.3,3566.2,6.88874964]
[1762851508865,0.6454,3566.3,3566.2,6.52204964]
[1762851509160,0.6454,3566.3,3566.2,2.80410521]
[1762851509721,0.6454,3566.3,3566.2,3.32340521]
[1762851509922,0.6454,3566.3,3566.2,4.30805943]
[1762851510168,0.6454,3566.3,3566.2,4.33610048]
[1762851510345,0.6454,3566.3,3566.2,4.30805943]
[1762851511016,0.6454,3566.3,3566.2,8.02600386]
[1762851511819,0.0004,3566.3,3566.2,8.02600386]
[1762851512332,0.6454,3566.3,3566.2,8.02600386]
[1762851513658,0.0004,3566.3,3566.2,8.02600386]
[1762851513823,0.6454,3566.3,3566.2,8.02600386]
[1762851514753,0.6454,3566.3,3566.2,7.50670386]
[1762851515771,0.0004,3566.3,3566.2,7.50670386]
[1762851520246,0.4731,3566.3,3566.2,7.50670386]
[1762851520442,0.4731,3566.3,3566.2,6.52204964]
[1762851523070,0.0004,3566.3,3566.2,8.14846164]
[1762851524274,0.0004,3566.3,3566.2,7.78176164]
[1762851524473,0.9558,3566.3,3566.2,3.71794443]
[1762851525171,0.9558,3566.3,3566.2,6.52204964]
[1762851525540,0.9558,3566.3,3566.1,0.001]
[1762851525739,0.9554,3566.2,3566.1,0.001]
[1762851528374,0.9546,3566.2,3566.1,0.001]
[1762851529282,0.9546,3566.2,3566.1,2.80518384]
[1762851529457,1.5996,3566.2,3566.1,2.80518384]
[1762851529856,1.5996,3566.2,3566.1,0.001]
[1762851532285,1.5996,3566.2,3566.1,2.80518384]
[1762851532684,1.5996,3566.2,3566.1,0.001]
[1762851536450,2.0399924,3566.2,3566.1,0.001]
[1762851537050,4.87219001,3566.2,3566.1,0.001]
[1762851537406,4.84409761,3566.2,3566.1,0.001]
[1762851539075,4.84609761,3566.2,3566.1,0.001]
[1762851544189,2.0419924,3566.2,3566.1,0.001]
[1762851544373,0.9142924,3566.2,3566.1,0.001]
[1762851544573,1.5752,3566.2,3566.1,0.001]
[1762851549989,0.4739,3566.2,3566.1,0.001]
[1762851550190,1.1189,3566.2,3566.1,0.001]
[1762851550499,1.5752,3566.2,3566.1,0.001]
[1762851552184,1.5744,3566.2,3566.1,0.001]
[1762851553527,1.1181,3566.2,3566.1,0.001]
[1762851553695,1.5744,3566.2,3566.1,0.001]
[1762851554021,4.53598521,3566.2,3566.1,0.001]
[1762851554229,1.73188,3566.2,3566.1,0.001]
[1762851554431,4.53598521,3566.2,3566.1,0.001]
[1762851556931,4.94148921,3566.2,3566.1,0.001]
[1762851557292,5.05384039,3566.2,3566.1,0.001]
[1762851558704,6.31355239,3566.2,3566.1,0.001]
[1762851568127,5.26304839,3566.2,3566.1,0.001]
[1762851568531,0.11435118,3566.2,3566.1,0.3693]
[1762851568732,0.646,3566.2,3566.1,0.5219]
[1762851573006,0.646,3566.2,3566.1,0.8902]
[1762851573706,0.646,3566.2,3565.8,2.64977672]
[1762851573903,0.646,3566.2,3565.7,2.80546593]
[1762851574138,0.646,3566.2,3565.7,3.70763472]
[1762851574337,0.646,3566.2,3565.8,2.80440226]
[1762851574943,0.646,3566.2,3565.7,0.90313948]
[1762851575141,3.45010695,3566.2,3565.7,0.001]
[1762851575479,3.93191061,3566.2,3565.7,0.001]
[1762851576133,3.93111061,3566.2,3565.7,0.001]
[1762851576334,0.4818,3566.1,3565.7,0.001]
[1762851576568,1.127,3566.2,3565.7,2.80547228]
[1762851578589,0.6452,3566.2,3565.7,0.001]
[1762851578876,0.644,3566.1,3565.9,2.80428278]
[1762851579080,0.0012,3566.2,3565.8,2.80441976]
[1762851579271,0.0012,3566.2,3565.9,6.21361034]
[1762851579475,0.644,3566.1,3566.0,2.80418717]
[1762851581548,0.644,3566.1,3565.9,3.40928687]
[1762851581881,0.644,3566.1,3566.0,2.80426247]
[1762851582276,0.644,3566.1,3565.9,2.80428567]
[1762851582472,0.644,3566.1,3565.7,3.41028687]
[1762851582666,0.644,3566.1,3566.0,2.80426247]
[1762851587251,0.0012,3566.2,3566.1,2.80418384]
[1762851587485,0.6452,3566.2,3566.1,2.80418384]
[1762851587704,0.6452,3566.2,3566.0,2.80421105]
[1762851587903,0.6452,3566.2,3566.1,2.80418384]
[1762851588591,0.6452,3566.2,3566.0,2.80425183]
[1762851588793,0.6452,3566.2,3565.8,0.34122869]
[1762851589094,0.6452,3566.2,3566.0,2.80420114]
[1762851590192,0.6452,3566.2,3566.1,2.80418384]
[1762851592704,0.6452,3566.2,3566.0,2.80423251]
[1762851594491,0.6452,3566.2,3566.1,2.80418384]
[1762851596401,0.6452,3566.2,3566.0,2.80425046]
[1762851597209,0.6452,3566.2,3566.1,2.80418384]
[1762851598220,0.6452,3566.2,3566.0,2.80424429]
[1762851598587,0.9267,3566.1,3565.8,2.80434777]
[1762851598878,0.9267,3566.1,3565.8,2.80439629]
[1762851599100,0.4503,3566.0,3565.8,2.80439629]
[1762851599469,0.6452,3566.2,3565.9,2.80434112]
[1762851599703,0.4503,3566.1,3565.9,2.80434112]
[1762851600207,0.6452,3566.2,3566.0,2.80425509]
[1762851600409,0.6452,3566.2,3565.7,0.001]
[1762851600410,0.644,3566.1,3565.7,0.001]
[1762851600568,0.644,3566.1,3565.7,3.72043677]
[1762851601009,0.6653,3565.8,3565.7,0.001]
[1762851601370,3.46971976,3565.8,3565.7,0.001]
[1762851602192,3.92001976,3565.8,3565.7,0.001]
[1762851602775,9.63919169,3565.8,3565.7,0.001]
[1762851602965,5.58523576,3565.8,3565.7,0.001]
[1762851603169,6.90626736,3565.8,3565.7,0.001]
[1762851605511,4.79075136,3565.8,3565.7,0.001]
[1762851605713,5.88505136,3565.8,3565.7,0.001]
[1762851606269,2.4366316,3565.8,3565.7,0.001]
[1762851606511,4.56401976,3565.8,3565.7,0.001]
[1762851607201,1.7596,3565.8,3565.7,0.001]
[1762851607509,1.3093,3565.8,3565.7,0.001]
[1762851608210,1.7596,3565.8,3565.7,0.001]
[1762851608371,1.1156,3565.8,3565.7,0.001]
[1762851608571,1.7596,3565.8,3565.7,0.001]
[1762851609012,0.11234203,3566.1,3565.7,0.001]
[1762851609221,0.644,3566.0,3565.7,0.001]
[1762851609986,1.0943,3566.0,3565.7,0.001]
[1762851610319,0.644,3565.9,3565.7,0.001]
[1762851610794,0.4503,3566.0,3565.7,0.001]
[1762851610998,0.644,3565.8,3565.7,0.001]
[1762851611516,0.4503,3566.0,3565.7,0.001]
[1762851611749,0.644,3565.8,3565.7,0.001]
[1762851612252,0.4515,3566.2,3565.7,0.001]
[1762851612451,0.644,3566.1,3565.7,2.80546502]
[1762851612617,1.0943,3566.1,3565.7,2.80546502]
[1762851613244,0.644,3566.0,3565.7,2.80546502]
[1762851613645,1.0943,3566.0,3565.7,2.80546502]
[1762851614834,1.0943,3566.0,3565.8,2.80440628]
[1762851615256,1.0943,3566.0,3565.7,0.001]
[1762851615759,2.80533173,3566.2,3565.7,0.001]
[1762851615760,0.644,3565.9,3565.7,2.80548651]
[1762851616252,0.644,3565.9,3565.7,0.001]
[1762851617260,0.644,3565.9,3565.7,2.80549656]
[1762851617957,0.644,3565.9,3565.7,0.001]
[1762851620052,1.0943,3565.9,3565.7,0.001]
[1762851620825,1.0943,3565.9,3565.7,2.80546634]
[1762851621050,1.0943,3565.9,3565.7,0.001]
[1762851621249,0.644,3565.9,3565.7,2.80549318]
[1762851622772,8.89916853,3565.8,3565.7,0.001]
[1762851623058,11.38214418,3565.8,3565.7,0.001]
[1762851623476,7.25720341,3565.8,3565.7,0.001]
[1762851623662,7.05848193,3565.8,3565.7,0.001]
[1762851623857,6.52683311,3565.8,3565.7,0.001]
[1762851624025,7.05848193,3565.8,3565.7,0.001]
[1762851624352,7.05768193,3565.8,3565.7,0.001]
[1762851625364,10.7771187,3565.8,3565.7,0.001]
[1762851625656,14.90205947,3565.8,3565.7,0.001]
[1762851630244,3.21015972,3565.5,3565.4,0.001]
[1762851630452,3.21015972,3565.5,3565.3,0.001]
[1762851630453,4.46995039,3565.4,3565.3,0.001]
[1762851630670,5.45555039,3565.4,3565.3,0.001]
[1762851630871,5.56793914,3565.4,3565.3,0.001]
[1762851633479,5.80643514,3565.4,3565.3,0.001]
[1762851633680,5.16243514,3565.4,3565.3,0.001]
[1762851633882,5.69404639,3565.4,3565.3,0.001]
[1762851634403,0.1889,3565.8,3565.3,0.001]
[1762851634593,2.9933299,3565.8,3565.3,0.001]
[1762851634788,0.644,3565.7,3565.3,0.001]
[1762851635463,3.44853964,3565.7,3565.3,0.001]
[1762851635906,0.644,3565.7,3565.3,0.001]
[1762851636408,3.44850178,3565.7,3565.3,0.001]
[1762851637102,0.644,3565.6,3565.3,0.001]
[1762851637311,0.644,3565.5,3565.3,0.001]
[1762851637496,0.644,3565.4,3565.3,0.001]
[1762851637671,0.644,3565.4,3565.3,2.80581305]
[1762851637866,0.002,3566.1,3565.3,0.001]
[1762851638203,0.002,3566.1,3565.3,2.80578632]
[1762851638204,3.44826441,3566.0,3565.3,2.80578632]
[1762851638402,3.44826441,3566.0,3565.4,2.80473071]
[1762851638708,0.002,3566.1,3565.3,0.001]
[1762851638709,0.002,3566.1,3565.3,4.65365581]
[1762851638875,0.644,3565.9,3565.6,2.80451315]
[1762851639207,0.644,3565.9,3565.7,2.80448181]
[1762851639392,0.644,3565.9,3565.6,2.80455172]
[1762851639904,0.644,3565.9,3565.3,3.72043677]
[1762851640107,0.644,3565.9,3565.4,2.80473439]
[1762851640303,0.002,3566.1,3565.6,2.80451809]
[1762851640505,0.644,3566.0,3565.7,2.80444983]
[1762851640710,0.002,3566.1,3566.0,2.80426247]
[1762851640877,0.646,3566.1,3566.0,2.80426247]
[1762851644103,0.646,3566.1,3565.9,6.52377518]
[1762851644318,0.646,3566.1,3566.0,2.80426247]
[1762851648020,0.64459784,3566.1,3566.0,3.73707362]
[1762851648235,0.64379784,3566.1,3566.0,3.73707362]
[1762851650526,0.0012,3566.2,3566.1,2.80418384]
[1762851650954,0.6452,3566.2,3566.1,2.80418384]
[1762851653015,0.0012,3566.2,3566.1,2.80418384]
[1762851653246,0.6452,3566.2,3566.1,2.80418384]
[1762851654341,0.0012,3566.2,3566.1,3.45831719]
[1762851659838,0.0012,3566.2,3566.1,4.71802919]
[1762851660244,0.0012,3566.2,3566.1,5.36202919]
[1762851661277,0.0012,3566.2,3566.1,8.12722261]
[1762851662465,0.0012,3566.2,3566.1,3.45931719]
[1762851664934,0.0012,3566.2,3566.1,6.86851061]
[1762851666150,0.0012,3566.2,3566.1,8.12822261]
[1762851667974,0.0012,3566.2,3566.1,8.53372661]
[1762851668991,0.0012,3566.2,3566.1,8.12822261]
[1762851669680,0.0012,3566.2,3566.1,4.71902919]
[1762851670093,0.0012,3566.2,3566.1,3.45931719]
[1762851670503,0.9943,3566.2,3566.1,2.80518384]
[1762851670811,0.9943,3566.2,3566.1,0.001]
[1762851671219,0.9943,3566.2,3566.1,2.80518384]
[1762851671383,0.9943,3566.2,3566.1,0.001]
[1762851671710,0.9943,3566.2,3566.1,2.80518384]
[1762851672213,0.9935,3566.2,3566.1,2.80518384]
[1762851674866,0.4951,3566.2,3566.1,2.80518384]
[1762851675091,0.0004,3566.2,3566.1,2.80518384]
[1762851675402,0.0004,3566.2,3566.1,6.21437726]
[1762851675638,0.0004,3566.2,3566.1,7.11624761]
[1762851676829,0.0004,3566.2,3566.1,8.37595961]
[1762851681033,0.0004,3566.2,3566.1,8.78146361]
[1762851681231,0.0004,3566.2,3566.1,8.37595961]
[1762851682037,0.0004,3566.2,3566.1,4.96676619]
[1762851688529,0.4542,3566.2,3566.1,4.96676619]
[1762851688832,0.9381,3566.2,3566.1,2.80518384]
[1762851690365,0.9381,3566.2,3566.1,0.001]
[1762851690948,0.9661924,3566.2,3566.1,0.001]
[1762851691159,0.9381,3566.2,3566.1,0.001]
[1762851691483,7.15139863,3566.2,3566.1,0.001]
[1762851691877,8.21428935,3566.2,3566.1,0.001]
[1762851692442,9.47400135,3566.2,3566.1,0.001]
[1762851693375,6.06480793,3566.2,3566.1,0.001]
[1762851693760,9.87950535,3566.2,3566.1,0.001]
[1762851694266,9.99185243,3566.2,3566.1,0.001]
[1762851694848,2.80465572,3565.5,3565.4,0.001]
[1762851695054,7.61920711,3565.5,3565.4,0.001]
[1762851695271,8.07501471,3565.5,3565.4,0.001]
[1762851696186,8.07421471,3565.5,3565.4,0.001]
[1762851697191,4.66502129,3565.5,3565.4,0.001]
[1762851701397,0.9377,3565.5,3565.4,0.001]
[1762851701797,0.643,3565.5,3565.4,0.001]
[1762851701996,0.643,3565.5,3565.4,2.80573439]
[1762851702207,0.643,3565.5,3565.4,0.001]
[1762851702422,1.0968,3565.5,3565.4,0.001]
[1762851702722,1.5807,3565.5,3565.4,2.80573439]
[1762851702869,1.5807,3565.5,3565.4,0.56227374]
[1762851703074,1.0968,3565.5,3565.4,3.36700813]
[1762851704212,0.0004,3566.2,3565.4,3.97146716]
[1762851704510,0.643,3566.1,3566.0,2.80424631]
[1762851705092,0.0004,3566.2,3566.1,2.80418384]
[1762851705601,0.6434,3566.2,3566.1,2.80418384]
[1762851705818,1.5811,3566.2,3566.1,2.80418384]
[1762851706001,1.0972,3566.2,3566.1,2.80418384]
[1762851706203,0.6434,3566.2,3566.1,2.80418384]
[1762851706432,0.6434,3566.2,3566.1,3.45521395]
[1762851706733,0.6444,3566.2,3566.1,3.45521395]
[1762851707096,0.0004,3566.2,3566.1,3.45521395]
[1762851707551,0.0004,3566.2,3566.1,4.71492595]
[1762851709123,0.0004,3566.2,3566.1,4.74296778]
[1762851709296,0.0004,3566.2,3566.1,4.71492595]
[1762851710441,0.0004,3566.2,3566.1,8.19586925]
[1762851710649,0.0004,3566.2,3566.1,8.16782742]
[1762851711001,0.0004,3566.2,3566.1,12.57981934]
[1762851712034,0.0004,3566.2,3566.1,12.6920879]
[1762851713657,0.0004,3566.2,3566.1,12.28869043]
[1762851713832,0.0004,3566.2,3566.1,12.17642187]
[1762851714924,0.0004,3566.2,3566.1,12.27445745]
[1762851715423,0.0004,3566.2,3566.1,7.12042995]
[1762851715653,0.0004,3566.2,3566.1,7.76342995]
[1762851716050,0.0004,3566.2,3566.1,8.16682742]
[1762851716561,0.0004,3566.2,3566.1,7.76342995]
[1762851716862,0.0004,3566.2,3566.1,8.16682742]
[1762851717064,0.0004,3566.2,3566.1,7.76342995]
[1762851718551,0.0004,3566.2,3566.1,8.16682742]
[1762851718954,0.0004,3566.2,3566.1,8.27909977]
[1762851720162,0.002,3566.5,3566.2,4.46932121]
[1762851720357,0.002,3566.5,3566.4,2.80394795]
[1762851722068,0.002,3566.5,3566.4,4.80394795]
[1762851722269,0.4741,3566.5,3566.4,6.06365995]
[1762851722569,0.939,3566.5,3566.4,6.06365995]
[1762851722774,0.4741,3566.5,3566.4,6.06365995]
[1762851722969,0.002,3566.5,3566.4,7.54186014]
[1762851723890,0.002,3566.5,3566.4,12.05188764]
[1762851724174,0.002,3566.5,3566.4,13.09928511]
[1762851724736,0.002,3566.5,3566.4,13.50478911]
[1762851724941,0.002,3566.5,3566.4,13.10139164]
[1762851725142,0.002,3566.5,3566.4,13.50478911]
[1762851725843,0.012,3566.9,3566.8,4.0633455]
[1762851726176,0.012,3566.9,3566.8,10.75417501]
[1762851728661,0.6695,3566.9,3566.8,5.19675004]
[1762851728990,1.1344,3566.9,3566.8,5.19675004]
[1762851729376,0.1974,3566.9,3566.8,5.19675004]
[1762851730090,0.012,3566.9,3566.8,5.19675004]
[1762851731672,0.012,3566.9,3566.8,5.60014751]
[1762851732874,0.012,3566.9,3566.8,9.31630387]
[1762851735021,0.002,3567.0,3566.9,8.58832473]
[1762851735295,0.002,3567.0,3566.9,10.55724876]
[1762851735500,1e-08,3567.9,3567.8,2.80284769]
[1762851735661,1e-08,3567.9,3567.8,7.77871605]
[1762851735887,0.93700001,3567.9,3567.7,2.80291887]
[1762851736079,0.46490001,3567.9,3567.7,2.80291887]
[1762851736280,0.937,3567.8,3567.7,2.80291887]
[1762851737145,0.937,3567.8,3565.9,2.80433661]
[1762851737439,0.1854,3566.9,3566.8,6.51978986]
[1762851737814,1.1224,3566.9,3566.8,2.8036335]
[1762851738015,1.1224,3566.9,3566.8,4.0633455]
[1762851738419,1.1224,3566.9,3566.6,3.71615636]
[1762851738728,0.4721,3566.7,3566.6,6.51993389]
[1762851738932,0.4721,3566.7,3566.6,2.80377753]
[1762851739083,0.937,3566.7,3566.6,2.80377753]
[1762851743219,0.937,3566.7,3566.6,2.80379072]
[1762851743445,0.937,3566.7,3566.4,0.001]
[1762851743609,0.4721,3566.5,3566.4,1.260712]
[1762851743805,0.4721,3566.5,3566.4,4.06465995]
[1762851744009,0.937,3566.5,3566.4,4.06465995]
[1762851744208,0.9362,3566.5,3566.4,4.06465995]
[1762851744820,0.4713,3566.5,3566.4,4.06465995]
[1762851745023,0.9362,3566.5,3566.4,4.06465995]
[1762851747572,0.9362,3566.5,3566.4,0.001]
[1762851747867,1.5802,3566.5,3566.4,0.001]
[1762851748158,1.73822,3566.5,3566.0,0.001]
[1762851748448,0.4748,3566.1,3566.0,0.001]
[1762851748952,0.9633,3566.1,3566.0,0.001]
[1762851749547,1.6073,3566.1,3566.0,2.80526247]
[1762851749756,2.80363882,3566.8,3566.0,2.80526247]
[1762851749757,0.4885,3566.8,3566.2,1.259712]
[1762851749923,0.1854,3566.9,3566.8,2.8036335]
[1762851750120,0.6739,3566.9,3566.8,2.8036335]
[1762851750326,1.1487,3566.9,3566.8,2.8036335]
[1762851755482,1.1487,3566.9,3566.7,2.80368928]
[1762851755689,0.4885,3566.8,3566.7,2.80368928]
[1762851755979,0.4885,3566.8,3566.6,2.80373767]
[1762851755980,0.9633,3566.8,3566.6,2.80373767]
[1762851756180,0.4748,3566.6,3566.0,0.001]
[1762851756351,0.4748,3566.1,3566.0,2.80526247]
[1762851756551,0.4748,3566.1,3566.0,5.03234414]
[1762851756987,0.4885,3566.3,3566.2,2.80410521]
[1762851757194,0.644,3566.5,3566.4,2.80394795]
[1762851758256,0.1854,3566.9,3566.8,2.8036335]
[1762851758466,0.8294,3566.9,3566.8,2.8036335]
[1762851758787,1.7927,3566.9,3566.8,2.8036335]
[1762851759152,0.1857,3567.4,3567.2,2.80331912]
[1762851759384,1.1345,3567.3,3567.2,2.80331912]
[1762851759598,1.6093,3567.3,3566.8,2.0]
[1762851759887,0.6605,3566.9,3566.8,2.0]
[1762851760088,1.149,3566.9,3566.8,4.8036335]
[1762851761470,1.794,3566.9,3566.8,4.8036335]
[1762851762655,1.3055,3566.9,3566.8,4.8036335]
[1762851762851,0.6605,3566.9,3566.8,4.8036335]
[1762851763054,0.6605,3566.9,3566.8,2.8036335]
[1762851763388,0.645,3567.0,3566.9,2.8035549]
[1762851763690,0.002,3567.3,3567.2,2.80331912]
[1762851763691,0.647,3567.3,3567.2,2.80331912]
[1762851763987,1.1355,3567.3,3567.2,2.80331912]
[1762851764185,1.6103,3567.3,3567.2,2.80331912]
[1762851765565,1.1218,3567.3,3567.2,2.80331912]
[1762851766712,1.6103,3567.3,3567.2,2.80331912]
[1762851767583,1.1218,3567.3,3567.2,2.80331912]
[1762851767783,0.647,3567.3,3567.2,2.80331912]
[1762851768187,0.0012,3567.3,3567.2,2.80331912]
[1762851768483,0.0012,3567.3,3567.2,2.83135231]
[1762851768686,0.0012,3567.3,3567.2,3.39202505]
[1762851769417,0.0012,3567.3,3567.2,3.36399186]
[1762851771895,0.0012,3567.3,3567.2,6.62370386]
[1762851772092,0.0012,3567.3,3567.2,7.02710133]
[1762851772881,0.0012,3567.3,3567.2,7.43260533]
[1762851773083,0.0012,3567.3,3567.2,5.43260533]
[1762851776906,0.0012,3567.3,3567.2,9.84265864]
[1762851784052,0.9692,3567.3,3567.2,4.62370386]
[1762851784252,0.9692,3567.3,3567.2,4.06303112]
[1762851784577,0.4774,3567.3,3567.2,4.06303112]
[1762851784874,0.9692,3567.3,3567.2,4.06303112]
[1762851785436,0.9692,3567.3,3567.2,2.80331912]
[1762851785636,0.9692,3567.3,3567.2,4.06303112]
[1762851786461,0.9692,3567.3,3567.2,2.80331912]
[1762851786669,0.9692,3567.3,3567.1,0.001]
[1762851786867,0.968,3567.2,3567.1,0.001]
[1762851787178,0.968,3567.2,3567.1,2.80439771]
[1762851788957,0.968,3567.2,3567.1,3.19077602]
[1762851790085,0.968,3567.2,3567.1,2.80439771]
[1762851792058,0.0012,3567.3,3567.2,2.80331912]
[1762851792258,0.0004,3567.3,3567.2,2.80331912]
[1762851792675,0.9684,3567.3,3567.2,2.80331912]
[1762851795316,0.9684,3567.3,3567.2,4.80331912]
[1762851795693,0.9684,3567.3,3567.2,2.80331912]
[1762851795890,0.9684,3567.3,3567.1,0.001]
[1762851796104,0.968,3567.2,3567.1,0.001]
[1762851796633,0.968,3567.2,3567.1,2.80439771]
[1762851797718,1.612,3567.2,3567.1,2.80439771]
[1762851797918,0.968,3567.2,3567.1,2.80439771]
[1762851798628,0.968,3567.2,3567.1,3.22019268]
[1762851800634,0.4762,3567.2,3567.1,3.22019268]
[1762851800842,0.0004,3567.3,3567.2,2.80331912]
[1762851801003,0.0004,3567.3,3567.2,6.2098293]
[1762851801325,0.0004,3567.3,3567.2,9.4695413]
[1762851801898,0.0004,3567.3,3567.2,9.83630077]
[1762851804021,0.0004,3567.3,3567.2,10.24180477]
[1762851804225,0.0004,3567.3,3567.2,11.9853856]
[1762851807030,0.0004,3567.3,3567.2,13.37111745]
[1762851808343,0.002,3567.7,3567.6,3.20850882]
[1762851808515,0.002,3567.7,3567.6,14.2323132]
[1762851808721,0.002,3567.7,3567.6,14.20428316]
[1762851808916,0.002,3567.7,3567.6,15.90502093]
[1762851810039,0.002,3567.7,3567.6,15.5218014]
[1762851810245,0.9717,3567.7,3567.6,7.76345459]
[1762851810739,0.4864,3567.7,3567.6,7.76345459]
[1762851811507,0.002,3567.7,3567.6,7.76345459]
[1762851812546,0.4864,3567.7,3567.6,6.50374259]
[1762851812732,0.9717,3567.7,3567.6,2.80300482]
[1762851814843,0.002,3567.7,3567.6,2.80300482]
[1762851815034,0.002,3567.7,3567.6,3.20846241]
[1762851815741,0.002,3567.7,3567.6,2.80300482]
[1762851815941,0.002,3567.7,3567.6,3.55398595]
[1762851816147,0.0012,3567.7,3567.6,5.21815337]
[1762851818511,0.0012,3567.7,3567.6,5.21920195]
[1762851818715,1e-08,3567.9,3567.8,4.80164769]
[1762851818915,1e-08,3567.9,3567.8,5.85115169]
[1762851819149,1e-08,3567.9,3567.8,7.58167553]
[1762851819518,0.48440001,3567.9,3567.8,7.50656029]
[1762851819714,0.48440001,3567.9,3567.8,7.17617153]
[1762851820016,1.15340001,3567.9,3567.8,7.17617153]
[1762851820412,1.15340001,3567.9,3567.8,6.53217153]
[1762851820653,1.15340001,3567.9,3567.8,4.80164769]
[1762851821164,1.15340001,3567.9,3567.7,4.8016711]
[1762851821463,0.4853,3567.8,3567.7,4.80172625]
[1762851821631,0.9697,3567.8,3567.7,4.80172625]
[1762851821948,0.9697,3567.8,3567.1,1.260712]
[1762851822150,0.4853,3567.7,3567.6,2.80293164]
[1762851822322,0.4844,3567.2,3567.1,4.06410971]
[1762851822649,0.4844,3567.2,3567.1,4.81546709]
[1762851823548,0.4853,3567.5,3567.4,2.80316196]
[1762851823765,0.18370001,3567.9,3567.8,2.80284769]
[1762851823766,0.66900001,3567.9,3567.8,2.80284769]
[1762851823966,1.15340001,3567.9,3567.8,2.80284769]
[1762851825018,0.66810001,3567.9,3567.8,2.80284769]
[1762851825350,0.18370001,3567.9,3567.8,2.80284769]
[1762851825651,1e-08,3567.9,3567.8,3.4279263]
[1762851826156,1.15340001,3567.9,3567.8,3.4279263]
[1762851826311,1.15340001,3567.9,3567.8,2.80284769]
[1762851827150,0.66810001,3567.9,3567.8,2.80284769]
[1762851827751,1e-08,3567.9,3567.8,2.80284769]
[1762851827961,1.15340001,3567.9,3567.8,2.80284769]
[1762851829019,0.66810001,3567.9,3567.8,2.80284769]
[1762851829216,0.66810001,3567.9,3567.8,3.4279263]
[1762851829918,1.15340001,3567.9,3567.8,3.4279263]
[1762851830626,1.15340001,3567.9,3567.8,5.4267263]
[1762851831744,1.15340001,3567.9,3567.8,4.80164769]